fUSD/lending_fUSD_20260420
["ID","MTS","AMOUNT","RATE_DAILY","PERIOD"]
[420860748,1776651046530,-340.682819,0.00011172,2]
[420860749,1776651046540,-160.0,0.00011172,2]
[420860750,1776651046550,-629.895347,0.00011172,2]
[420860751,1776651046559,-1099.790695,0.00011172,2]
[420860752,1776651046569,-160.0,0.00011172,2]
[420860753,1776651046578,-381.122563,0.00011172,2]
[420860754,1776651046588,-602.245127,0.00011172,2]
[420860755,1776651046598,-160.0,0.00011172,2]
[420860756,1776651046608,-242.65698,0.00011172,2]
[420860757,1776651046617,-325.31396,0.00011172,2]
[420860758,1776651046627,-160.0,0.00011172,2]
[420860759,1776651046636,-269.500402,0.00011172,2]
[420860760,1776651046645,-379.000805,0.00011172,2]
[420860761,1776651046655,-712.0,0.00011263,5]
[420860762,1776651046664,-419.01,0.00011264,2]
[420860763,1776651046673,-419.02,0.00011272,2]
[420860764,1776651046684,-2800.0,0.000113,4]
[420860765,1776651046693,-500.0,0.000114,4]
[420860766,1776651046703,-1600.0,0.00011407,2]
[420860767,1776651046712,-437.41,0.00011417,2]
[420860768,1776651046722,-166.66,0.00011424,2]
[420860769,1776651046731,-153.0,0.00011436,3]
[420860770,1776651046741,-437.42,0.00011474,2]
[420860771,1776651046751,-500.0,0.000115,4]
[420860772,1776651046760,-3173.8,0.00011507,2]
[420860773,1776651046770,-526.9,0.00011544,2]
[420860774,1776651046779,-335.2,0.00011545,2]
[420860775,1776651046789,-560.78,0.00011545,2]
[420860776,1776651046798,-151.0,0.00011579,2]
[420860777,1776651046807,-151.0,0.00011579,2]
[420860778,1776651046817,-947.98,0.00011579,2]
[420860779,1776651046826,-300.5,0.00011585,2]
[420860780,1776651046836,-500.0,0.000116,4]
[420860781,1776651046845,-1378.0,0.00011621,3]
[420860782,1776651046855,-935.977939,0.00011628,2]
[420860783,1776651046864,-2169.323575,0.00011628,2]
[420860784,1776651046874,-500.0,0.000117,4]
[420860785,1776651046883,-341.374649,0.00011731,2]
[420860786,1776651046893,-858.948201,0.00011731,2]
[420860787,1776651046902,-779.568879,0.00011731,2]
[420860788,1776651046912,-330.895882,0.00011731,2]
[420860789,1776651046922,-367.500549,0.00011731,2]
[420860790,1776651046931,-426.38,0.00011753,2]
[420860791,1776651046941,-1084.09,0.00011754,2]
[420860792,1776651046951,-295.18,0.00011754,2]
[420860793,1776651046960,-151.0,0.00011754,2]
[420860794,1776651046971,-366.17,0.00011787,2]
[420860795,1776651046980,-298.83,0.00011788,2]
[420860796,1776651046990,-1071.0,0.000118,4]
[420860797,1776651046999,-1111.13196341,0.0001182,2]
[420860798,1776651047008,-404.17,0.00011823,2]
[420860799,1776651047018,-165.59,0.0001183,2]
[420860800,1776651047027,-695.39793187,0.00011864,2]
[420860801,1776651047037,-288.2092,0.0001188,2]
[420860802,1776651047047,-288.2092,0.0001188,2]
[420860803,1776651047056,-288.20921,0.0001188,2]
[420860804,1776651047065,-288.2092,0.0001188,2]
[420860805,1776651047075,-2000.0,0.00011888,2]
[420860806,1776651047085,-1000.0,0.000119,2]
[420860807,1776651047094,-3020.773,0.000119,2]
[420860808,1776651047104,-21202.32199705,0.000119,2]
[420860809,1776651047113,-153.032112,0.000119,2]
[420860810,1776651047123,-151.0,0.000119,2]
[420860811,1776651047132,-151.0,0.000119,2]
[420860812,1776651047142,-151.0,0.000119,2]
[420860813,1776651047152,-200.0,0.00011903,2]
[420860814,1776651047162,-200.0,0.00011904,2]
[420860815,1776651047172,-200.0,0.00011904,2]
[420860816,1776651047182,-173.0,0.00011973,2]
[420860817,1776651047191,-300.0,0.00011999,2]
[420860818,1776651047201,-24013.48800687,0.00012,2]
[420860819,1776651047219,-2546.592,0.00012,2]
[420860820,1776651047239,-11643.53163922,0.00012,2]
[420860821,1776651125606,500.0,8.555e-05,2]
[420860822,1776651125646,181.07565411,8.555e-05,2]
[420860823,1776651137337,10000.01,8.454e-05,2]
[420860824,1776651137363,10000.01,8.454e-05,2]
[420860825,1776651137391,10000.01,8.454e-05,2]
[420860826,1776651137417,10000.01,8.454e-05,2]
[420860827,1776651137442,10000.01,8.454e-05,2]
[420860828,1776651138072,10000.01,8.454e-05,2]
[420860829,1776651138100,10000.01,8.454e-05,2]
[420860830,1776651138127,10000.01,8.454e-05,2]
[420860831,1776651138153,10000.01,8.454e-05,2]
[420860832,1776651138179,10000.01,8.454e-05,2]
[420860833,1776651138205,9318.93434589,8.454e-05,2]
[420860834,1776651138230,10000.01,8.454e-05,2]
[420860835,1776651138256,10000.01,8.454e-05,2]
[420860836,1776651138281,10000.01,8.454e-05,2]
[420860837,1776651164952,-9700.66923859,8.454e-05,2]
[420860838,1776651165032,-10000.01,8.454e-05,2]
[420860839,1776651168032,-10000.01,8.454e-05,2]
[420860840,1776651168118,-10000.01,8.454e-05,2]
[420860841,1776651168219,-10000.01,8.454e-05,2]
[420860842,1776651168349,-10000.01,8.454e-05,2]
[420860843,1776651174902,-10000.01,8.454e-05,2]
[420860844,1776651174916,-10000.01,8.454e-05,2]
[420860845,1776651229562,200.0,7.55e-05,2]
[420860846,1776651234954,200.0,7.75e-05,2]
[420860847,1776651240348,200.20655683,7.95e-05,2]
[420860848,1776651242317,394.4,8.412e-05,2]
[420860849,1776651247386,1035.0,7.75e-05,3]
[420860850,1776651301170,1200.0,8.453e-05,2]
[420860851,1776651301322,300.0,8.453e-05,2]
[420860852,1776651301351,300.0,8.453e-05,2]
[420860853,1776651302213,150.0,8.453e-05,2]
[420860854,1776651311053,154.0,7.75e-05,3]
[420860855,1776651311248,1006.0,7.75e-05,3]
[420860856,1776651311611,-4860.40344317,8.454e-05,2]
[420860857,1776651312584,-10000.01,8.454e-05,2]
[420860858,1776651324044,-10000.01,8.454e-05,2]
[420860859,1776651324363,-10000.01,8.454e-05,2]
[420860860,1776651344237,-10000.01,8.454e-05,2]
[420860861,1776651344359,-10000.01,8.454e-05,2]
[420860862,1776651344476,-10000.01,8.454e-05,2]
[420860863,1776651344730,-10000.01,8.454e-05,2]
[420860864,1776651344854,-10000.01,8.454e-05,2]
[420860865,1776651344995,-10000.01,8.454e-05,2]
[420860866,1776651345083,-10000.01,8.454e-05,2]
[420860867,1776651345195,-10000.01,8.454e-05,2]
[420860868,1776651345351,-10000.01,8.454e-05,2]
[420860869,1776651345471,-10000.01,8.454e-05,2]
[420860870,1776651345571,-10000.01,8.454e-05,2]
[420860871,1776651350477,-3492.44242765,8.454e-05,2]
[420860872,1776651350501,-3015.1251447,8.454e-05,2]
[420860879,1776651414751,500.0,8.358e-05,2]
[420860880,1776651423847,300.0,8.453e-05,2]
[420860882,1776651426910,301.94711781,8.454e-05,2]
[420860883,1776651427481,956.0,8.358e-05,3]
[420860884,1776651437432,-163.0,8.454e-05,3]
[420860885,1776651437461,-260.0,8.454e-05,2]
[420860887,1776651452648,-514.68428208,8.454e-05,2]
[420860888,1776651452678,-500.0,8.454e-05,2]
[420860889,1776651452714,-500.0,8.454e-05,2]
[420860890,1776651452749,-500.0,8.454e-05,2]
[420860891,1776651452779,-500.0,8.454e-05,2]
[420860892,1776651452814,-500.0,8.454e-05,2]
[420860893,1776651452849,-500.0,8.454e-05,2]
[420860894,1776651452878,-500.0,8.454e-05,2]
[420860895,1776651452912,-500.0,8.454e-05,2]
[420860896,1776651452946,-470.64143584,8.454e-05,2]
[420860897,1776651453157,-500.0,8.454e-05,2]
[420860898,1776651453192,-500.0,8.454e-05,2]
[420860899,1776651453227,-500.0,8.454e-05,2]
[420860900,1776651453260,-500.0,8.454e-05,2]
[420860901,1776651453294,-500.0,8.454e-05,2]
[420860902,1776651453327,-500.0,8.454e-05,2]
[420860903,1776651453362,-500.0,8.454e-05,2]
[420860904,1776651453396,-500.0,8.454e-05,2]
[420860905,1776651453430,-500.0,8.454e-05,2]
[420860906,1776651453464,-500.0,8.454e-05,2]
[420860907,1776651461942,2057.238744,8.178e-05,2]
[420860908,1776651462951,7942.771256,8.354e-05,2]
[420860909,1776651462978,10000.01,8.354e-05,2]
[420860910,1776651463005,10000.01,8.354e-05,2]
[420860911,1776651463031,10000.01,8.354e-05,2]
[420860912,1776651463057,10000.01,8.354e-05,2]
[420860913,1776651463084,10000.01,8.354e-05,2]
[420860916,1776651588638,200.0,7.55e-05,2]
[420860917,1776651594019,300.21050458,7.75e-05,2]
[420860918,1776651607730,1096.0,7.75e-05,3]
[420860919,1776651621539,158.0,7.75e-05,3]
[420860924,1776651628004,156.0,7.75e-05,3]
[420860925,1776651665873,280.42705805,7.75e-05,3]
[420860926,1776651665897,760.57294195,7.75e-05,3]
[420860927,1776651692373,158.0,7.75e-05,3]
[420860928,1776651727882,989.0,7.75e-05,3]
[420860930,1776651745310,-519.648493,8.178e-05,2]
[420860932,1776651755014,158.0,7.75e-05,3]
[420860933,1776651847101,940.0,7.75e-05,3]
[420860934,1776651853531,158.0,7.75e-05,3]
[420860935,1776651907940,893.0,7.75e-05,3]
[420860936,1776651912154,156.0,7.75e-05,3]
[420860937,1776651912413,158.0,7.75e-05,3]
[420860938,1776651968893,869.0,7.75e-05,3]
[420860939,1776651976735,743.39,0.000165,30]
[420860940,1776651986991,743.39,0.000165,30]
[420860941,1776652013120,163.0,7.75e-05,3]
[420860942,1776652028623,826.0,7.75e-05,3]
[420860943,1776652069893,158.0,7.75e-05,3]
[420860944,1776652112939,174.13,7.317e-05,2]
[420860945,1776652149008,785.0,7.75e-05,3]
[420860946,1776652176000,-150.0,8.22e-05,2]
[420860947,1776652191221,-300.0,8.353e-05,2]
[420860948,1776652191251,-1200.0,8.353e-05,2]
[420860949,1776652191280,-286.0,8.353e-05,2]
[420860950,1776652201362,300.0,8.353e-05,2]
[420860951,1776652201582,1200.0,8.353e-05,2]
[420860952,1776652211113,156.0,7.75e-05,3]
[420860994,1776652234358,-1337.70986208,8.354e-05,2]
[420860995,1776652234370,-1148.76047939,8.354e-05,2]
[420860996,1776652234389,-802.49139687,8.354e-05,2]
[420860997,1776652234402,-20876.91720566,8.354e-05,2]
[420860998,1776652234411,-500.0,8.454e-05,2]
[420860999,1776652234421,-150.0,8.52e-05,2]
[420861000,1776652234431,-227.57,8.52e-05,2]
[420861001,1776652234440,-174.13,8.537e-05,2]
[420861002,1776652234450,-150.0,8.82e-05,2]
[420861003,1776652234460,-325.36739026,9.042e-05,2]
[420861004,1776652234470,-150.0,9.081e-05,2]
[420861005,1776652234479,-1328.27659266,9.082e-05,2]
[420861006,1776652234488,-151.0,9.082e-05,2]
[420861007,1776652234498,-1000.0,9.082e-05,2]
[420861008,1776652234508,-1000.0,9.082e-05,2]
[420861009,1776652234517,-1000.0,9.082e-05,2]
[420861010,1776652234528,-174.61919141,9.082e-05,2]
[420861011,1776652234542,-150.0,9.12e-05,2]
[420861012,1776652234552,-151.0,9.137e-05,2]
[420861013,1776652234562,-420.0,9.188e-05,2]
[420861014,1776652234571,-1680.0,9.188e-05,2]
[420861015,1776652234581,-250.0,9.189e-05,2]
[420861016,1776652234591,-151.0,9.192e-05,2]
[420861017,1776652234600,-1000.0,9.297e-05,2]
[420861018,1776652234610,-150.0,9.42e-05,2]
[420861019,1776652234619,-156.0,9.531e-05,3]
[420861020,1776652234628,-1428.38747118,9.63e-05,2]
[420861021,1776652234638,-181.08010149,9.63e-05,2]
[420861022,1776652234648,-150.0,9.72e-05,2]
[420861023,1776652234657,-174.13,9.756e-05,2]
[420861024,1776652234667,-256.26351018,9.814e-05,2]
[420861025,1776652234676,-155.75935157,9.814e-05,2]
[420861026,1776652234686,-151.04716933,9.814e-05,2]
[420861027,1776652234695,-164.27592008,9.814e-05,2]
[420861028,1776652234705,-150.5096928,9.814e-05,2]
[420861029,1776652234714,-153.70871992,9.814e-05,2]
[420861030,1776652234723,-153.62083075,9.814e-05,2]
[420861031,1776652234733,-151.52381822,9.814e-05,2]
[420861032,1776652234742,-150.28549863,9.814e-05,2]
[420861033,1776652234752,-195.0,9.989e-05,2]
[420861034,1776652234761,-150.0,0.0001002,2]
[420861035,1776652234771,-587.0,0.00010107,2]
[420861036,1776652234780,-2351.0,0.00010107,2]
[420861037,1776652234790,-5779.0,0.00010137,2]
[420861038,1776652234799,-1000.0,0.00010139,2]
[420861039,1776652234809,-1500.0,0.0001014,2]
[420861040,1776652234818,-5021.84,0.0001014,2]
[420861041,1776652234827,-187.78006525,0.00010178,2]
[420861042,1776652234837,-172.979,0.00010379,2]
[420861043,1776652235470,-2124.261,0.00010379,2]
[420861044,1776652235481,-4313.0,0.00010685,2]
[420861045,1776652235491,-194.72792766,0.00010726,2]
[420861046,1776652235500,-2474.0,0.00010781,2]
[420861047,1776652235510,-5347.19411782,0.00010817,2]
[420861048,1776652235519,-161.23,0.00010895,2]
[420861049,1776652235528,-157.8,0.00010895,2]
[420861050,1776652235538,-500.0,0.00010914,2]
[420861051,1776652235546,-264.43825178,0.00010914,2]
[420861052,1776652235556,-166.31252049,0.00010914,2]
[420861053,1776652235565,-639.27475686,0.00010914,2]
[420861054,1776652235574,-500.0,0.00010914,2]
[420861055,1776652235584,-1000.0,0.00010915,2]
[420861056,1776652235593,-9676.8314,0.00010915,2]
[420861057,1776652235603,-43242.7313355,0.00010915,2]
[420861058,1776652235615,-75677.66633205,0.00010915,2]
[420861059,1776652235627,-20467.21184517,0.00010915,2]
[420861060,1776652235639,-41757.43361688,0.00010915,2]
[420861061,1776652235651,-1254.41808677,0.00010915,2]
[420861062,1776652235662,-2279.77003804,0.00010915,2]
[420861063,1776652235674,-1486.23219409,0.00010915,2]
[420861064,1776652235693,-6108.63899614,0.00010915,2]
[420861065,1776652235800,-797.59445327,0.00010915,2]
[420861066,1776652235812,-765.71157577,0.00010915,2]
[420861067,1776652235823,-1249.39039257,0.00010915,2]
[420861068,1776652235835,-500.0,0.00010915,2]
[420861069,1776652235846,-1322.37552332,0.00010915,2]
[420861072,1776652237989,-579.78867862,0.00010915,2]
[420861073,1776652238049,-1049.53799999,0.00010915,2]
[420861074,1776652238108,-2592.62594964,0.00010915,2]
[420861075,1776652238169,-5194.8976806,0.00010915,2]
[420861076,1776652238181,-3980.21091982,0.00010915,2]
[420861077,1776652238192,-1884.13741114,0.00010915,2]
[420861078,1776652238203,-20060.49647241,0.00010915,2]
[420861079,1776652238229,-57783.91705371,0.00010915,2]
[420861080,1776652238240,-598.26313241,0.00010915,2]
[420861081,1776652238315,-12638.1557883,0.00010915,2]
[420861086,1776652240557,-8860.74071935,0.00010915,2]
[420861087,1776652240568,-8947.21879473,0.00010915,2]
[420861088,1776652240580,-8943.78386462,0.00010915,2]
[420861089,1776652240591,-9077.54866152,0.00010915,2]
[420861097,1776652247326,-541.804,0.00010781,2]
[420861098,1776652247336,-6602.39931655,0.00010915,2]
[420861099,1776652299284,961.9578,8.254e-05,2]
[420861100,1776652300916,150.0,0.00015459,30]
[420861101,1776652301290,150.0,0.00016402,30]
[420861102,1776652371908,150.0,0.00013904,30]
[420861103,1776652372191,150.0,0.00014753,30]
[420861104,1776652372534,150.0,0.00015601,30]
[420861105,1776652372885,150.0,0.0001645,30]
[420861106,1776652689208,1226.858903,7.945e-05,2]
[420861107,1776652748278,898.41,8.652e-05,2]
[420861108,1776652820483,127813.0,0.000165,120]
[420861116,1776653434779,-150.0,9.715e-05,2]
[420861117,1776653434789,-170.05971156,0.00010012,2]
[420861120,1776653438510,-413.72052146,0.00010012,2]
[420861121,1776653438520,-150.0,0.00010012,2]
[420861122,1776653438530,-1200.0,0.00010139,2]
[420861123,1776653438539,-594.66,0.0001014,2]
[420861124,1776653438549,-1621.83039836,0.0001014,2]
[420861125,1776653438560,-1884.13741114,0.0001014,2]
[420861126,1776653438668,-1016.64498642,0.0001014,2]
[420861127,1776653440610,-5598.85720408,0.0001014,2]
[420861128,1776653440619,-2124.12,0.0001014,2]
[420861129,1776653440630,-150.0,0.00010255,2]
[420861130,1776653440639,-150.0,0.00010312,2]
[420861131,1776653440648,-200.0,0.00010523,2]
[420861132,1776653440658,-637.76351527,0.00010539,2]
[420861133,1776653440670,-3779.23648473,0.00010539,2]
[420861134,1776653440679,-500.0,0.00010539,2]
[420861135,1776653440689,-500.0,0.00010539,2]
[420861136,1776653440698,-500.0,0.00010539,2]
[420861137,1776653440708,-500.0,0.00010539,2]
[420861138,1776653440717,-500.0,0.00010539,2]
[420861139,1776653440726,-500.0,0.00010539,2]
[420861140,1776653440736,-500.0,0.00010539,2]
[420861141,1776653440746,-500.0,0.00010539,2]
[420861142,1776653440755,-500.0,0.00010539,2]
[420861143,1776653440764,-500.0,0.00010539,2]
[420861144,1776653440774,-167.98231,0.00010539,2]
[420861145,1776653440786,-332.01769,0.00010539,2]
[420861146,1776653440798,-500.0,0.00010539,2]
[420861147,1776653440808,-500.0,0.00010539,2]
[420861148,1776653440818,-500.0,0.00010539,2]
[420861149,1776653440827,-500.0,0.00010539,2]
[420861150,1776653440837,-500.0,0.00010539,2]
[420861151,1776653440847,-504.16391792,0.00010539,2]
[420861152,1776653440856,-166.36,0.00010586,2]
[420861153,1776653440867,-150.0,0.00010612,2]
[420861154,1776653440876,-5000.0,0.00010687,2]
[420861155,1776653440886,-291.2422567,0.00010687,2]
[420861156,1776653440900,-24.22728418,0.00010687,2]
[420861157,1776653440909,-250.0,0.00010687,2]
[420861158,1776653440919,-250.0,0.00010687,2]
[420861159,1776653440928,-2307.50458245,0.000107,2]
[420861160,1776653440938,-2865.661,0.000107,2]
[420861161,1776653440948,-172.979,0.000107,2]
[420861162,1776653440958,-3207.17679489,0.00010714,2]
[420861163,1776653440999,-8761.04410511,0.00010714,2]
[420861164,1776653441011,-5000.0,0.00010714,2]
[420861165,1776653441021,-2438.9188,0.00010714,2]
[420861166,1776653441031,-150.00000001,0.00010795,2]
[420861167,1776653441041,-201.60640572,0.00010807,2]
[420861168,1776653441050,-500.0,0.00010807,2]
[420861169,1776653441060,-670.58624095,0.00010807,2]
[420861170,1776653441069,-151.0,0.00010807,2]
[420861171,1776653441078,-500.0,0.00010807,2]
[420861172,1776653441088,-151.0,0.00010807,2]
[420861173,1776653441099,-512.50234393,0.00010807,2]
[420861174,1776653441109,-196.45674226,0.00010807,2]
[420861175,1776653441118,-1000.0,0.00010807,2]
[420861176,1776653441128,-1000.0,0.00010807,2]
[420861177,1776653441137,-606.78492817,0.00010807,2]
[420861178,1776653441147,-1000.0,0.00010807,2]
[420861179,1776653441156,-1000.0,0.00010807,2]
[420861180,1776653441165,-1000.0,0.00010807,2]
[420861181,1776653441175,-1377.42282658,0.00010807,2]
[420861182,1776653441185,-1000.0,0.00010807,2]
[420861183,1776653441194,-75.39941451,0.00010807,2]
[420861200,1776653527400,247.41,8.655e-05,2]
[420861201,1776653585709,747.0,8.655e-05,3]
[420861202,1776653630442,163.0,8.655e-05,3]
[420861203,1776653647093,710.0,8.655e-05,3]
[420861204,1776653775389,674.0,8.655e-05,3]
[420861205,1776653815278,1239.86,8.657e-05,2]
[420861207,1776653833609,641.0,8.655e-05,3]
[420861208,1776653888564,609.0,8.655e-05,3]
[420861209,1776653934225,163.0,8.655e-05,3]
[420861210,1776653948961,426.0,8.655e-05,3]
[420861211,1776654011649,152.0,8.655e-05,3]
[420861212,1776654017025,156.0,8.655e-05,3]
[420861213,1776654076836,549.0,8.655e-05,3]
[420861214,1776654125137,522.0,8.655e-05,3]
[420861215,1776654191262,496.0,8.655e-05,3]
[420861216,1776654262027,163.0,8.655e-05,3]
[420861217,1776654308242,471.0,8.655e-05,3]
[420861218,1776654312253,156.0,8.655e-05,3]
[420861220,1776654369299,447.0,8.655e-05,3]
[420861221,1776654426582,425.0,8.655e-05,3]
[420861222,1776654489254,404.0,8.655e-05,3]
[420861223,1776654547026,384.0,8.655e-05,3]
[420861225,1776654610677,156.0,8.655e-05,3]
[420861226,1776654610938,364.0,8.655e-05,3]
[420861229,1776654631493,-364.0,9.357e-05,3]
[420861230,1776654631503,-300.0,9.743e-05,2]
[420861231,1776654631512,-1200.0,9.743e-05,2]
[420861232,1776654631521,-1113.83211649,9.744e-05,2]
[420861236,1776654637816,-3416.49039836,9.744e-05,2]
[420861237,1776654637828,-1884.13741114,9.744e-05,2]
[420861238,1776654638060,-807.07366727,9.744e-05,2]
[420861239,1776654639803,-881.94778961,9.744e-05,2]
[420861297,1776654645568,-3319.07861713,9.744e-05,2]
[420861298,1776654645578,-276.16639636,9.785e-05,2]
[420861299,1776654646806,-1223.83360364,9.785e-05,2]
[420861300,1776654646816,-192.95,9.981e-05,2]
[420861301,1776654646826,-1117.76,9.989e-05,2]
[420861302,1776654646835,-364.0,0.0001006,3]
[420861303,1776654646845,-2000.0,0.0001014,2]
[420861304,1776654646854,-3225.88,0.0001014,2]
[420861305,1776654646865,-250.0,0.00010293,2]
[420861306,1776654646875,-500.0,0.00010456,2]
[420861307,1776654646884,-623.51307302,0.00010553,2]
[420861308,1776654646894,-4269.91017409,0.000106,2]
[420861309,1776654669334,310.0,8.655e-05,3]
[420861310,1776654791177,294.0,8.655e-05,3]
[420861311,1776654845976,280.0,8.655e-05,3]
[420861312,1776654854114,174.13,8.112e-05,2]
[420861313,1776654891652,163.0,8.655e-05,3]
[420861318,1776654909230,266.0,8.655e-05,3]
[420861319,1776654909265,156.0,8.655e-05,3]
[420861320,1776654926671,246.51,0.000165,120]
[420861321,1776654969202,252.0,8.655e-05,3]
[420861322,1776655026439,240.0,8.655e-05,3]
[420861323,1776655086847,228.0,8.655e-05,3]
[420861324,1776655149106,216.0,8.655e-05,3]
[420861325,1776655210576,274.0,8.655e-05,3]
[420861326,1776655211363,155.0,8.655e-05,3]
[420861327,1776655331048,261.0,8.655e-05,3]
[420861328,1776655354081,-150.0,8.951e-05,2]
[420861329,1776655412382,-248.0,8.655e-05,3]
[420861330,1776655414458,150.0,8.598e-05,2]
[420861331,1776655446619,304.0,8.655e-05,3]
[420861332,1776655508162,155.0,8.655e-05,3]
[420861334,1776655588963,289.0,8.655e-05,3]
[420861335,1776655627498,274.0,8.655e-05,3]
[420861336,1776655687647,261.0,8.655e-05,3]
[420861337,1776655745316,248.0,8.655e-05,3]
[420861338,1776655811363,156.0,8.655e-05,3]
[420861339,1776655833332,-150.0,9.185e-05,2]
[420861340,1776655833342,-250.45,9.21e-05,2]
[420861341,1776655833372,-4272.16,9.21e-05,2]
[420861342,1776655833382,-300.0,9.24e-05,2]
[420861343,1776655833392,-1200.0,9.24e-05,2]
[420861344,1776655833402,-20168.04,9.241e-05,2]
[420861345,1776655833411,-249.09,9.245e-05,2]
[420861346,1776655833421,-166.1,9.297e-05,2]
[420861347,1776655833431,-180.9,9.334e-05,2]
[420861348,1776655833440,-249.61,9.373e-05,2]
[420861349,1776655833450,-150.0,9.444e-05,2]
[420861350,1776655833460,-150.0,9.444e-05,2]
[420861351,1776655833470,-151.08036204,9.444e-05,2]
[420861352,1776655833479,-150.0,9.444e-05,2]
[420861353,1776655833489,-186.16398824,9.444e-05,2]
[420861354,1776655833499,-150.0,9.444e-05,2]
[420861355,1776655833508,-150.0,9.444e-05,2]
[420861356,1776655833517,-150.34467253,9.444e-05,2]
[420861357,1776655833526,-183.56823945,9.444e-05,2]
[420861358,1776655833536,-200.0,9.466e-05,2]
[420861359,1776655833545,-150.0,9.485e-05,2]
[420861360,1776655833554,-594.66,9.716e-05,2]
[420861361,1776655833564,-10000.0,9.743e-05,2]
[420861362,1776655833573,-150.0,9.765e-05,2]
[420861363,1776655833583,-150.0,9.785e-05,2]
[420861364,1776655833592,-150.0,0.00010102,2]
[420861365,1776655833602,-300.0,0.00010103,2]
[420861366,1776655833611,-5000.0,0.00010103,2]
[420861367,1776655833621,-300.0,0.00010103,2]
[420861368,1776655833630,-500.0,0.0001014,2]
[420861369,1776655833639,-420.0,0.00010164,2]
[420861370,1776655833649,-1680.0,0.00010164,2]
[420861371,1776655833658,-166.1,0.00010227,2]
[420861372,1776655833667,-4233.0,0.00010265,2]
[420861373,1776655833677,-84216.1394,0.00010399,2]
[420861374,1776655833687,-5000.0,0.000104,2]
[420861375,1776655833696,-2292.528,0.000104,2]
[420861376,1776655833705,-172.979,0.000104,2]
[420861377,1776655833714,-2500.0,0.000104,2]
[420861378,1776655833723,-7441.2049644,0.00010444,2]
[420861379,1776655833733,-2384.0,0.00010466,2]
[420861380,1776655833742,-500.0,0.00010473,2]
[420861381,1776655833752,-500.0,0.00010473,2]
[420861382,1776655833761,-500.79027363,0.00010473,2]
[420861383,1776655833771,-1551.91,0.00010475,2]
[420861384,1776655833780,-9999.99,0.00010475,2]
[420861385,1776655833790,-150.99,0.00010475,2]
[420861386,1776655833799,-9999.99,0.00010475,2]
[420861387,1776655833809,-299.99,0.00010475,2]
[420861388,1776655833819,-1336.47598008,0.00010486,2]
[420861389,1776655833828,-10831.11009358,0.0001049,2]
[420861390,1776655833838,-151.40955595,0.00010493,2]
[420861391,1776655833847,-284.23043053,0.00010493,2]
[420861392,1776655833856,-151.0,0.00010499,2]
[420861393,1776655833866,-151.0,0.00010499,2]
[420861394,1776655833875,-151.0,0.00010499,2]
[420861395,1776655833885,-151.0,0.00010499,2]
[420861396,1776655833895,-151.0,0.00010499,2]
[420861397,1776655833904,-151.0,0.00010499,2]
[420861398,1776655833914,-151.0,0.00010499,2]
[420861399,1776655833924,-179.452209,0.00010499,2]
[420861400,1776655833933,-151.0,0.00010499,2]
[420861401,1776655833943,-153.049601,0.00010499,2]
[420861402,1776655833952,-151.0,0.00010499,2]
[420861403,1776655833961,-152.548405,0.00010499,2]
[420861404,1776655833971,-346.36338486,0.00010499,2]
[420861405,1776655833980,-500.0,0.00010499,2]
[420861406,1776655833989,-589.42947248,0.00010499,2]
[420861407,1776655833998,-500.0,0.00010499,2]
[420861408,1776655834009,-500.0,0.00010499,2]
[420861409,1776655834018,-500.0,0.00010499,2]
[420861410,1776655834027,-500.0,0.00010499,2]
[420861411,1776655834036,-500.0,0.00010499,2]
[420861412,1776655834045,-500.0,0.00010499,2]